fUST/lending_fUST_20260206
["ID","MTS","AMOUNT","RATE_DAILY","PERIOD"]
[404588436,1770316806606,502.70601719,0.00013273,2]
[404588437,1770316806693,179.84,0.000109,2]
[404588438,1770316806952,179.84,0.00011,2]
[404588439,1770316807280,179.84,0.00011,2]
[404588440,1770316807440,1000.0,0.00013821,2]
[404588441,1770316807476,500.0,0.00013273,2]
[404588442,1770316807506,500.0,0.00013273,2]
[404588443,1770316807549,169.24202811,0.00013821,2]
[404588444,1770316807585,179.84,0.000111,2]
[404588445,1770316807858,179.84,0.000112,2]
[404588446,1770316808169,179.84,0.000112,2]
[404588447,1770316809203,179.84,0.000113,2]
[404588448,1770316809428,179.84,0.000114,2]
[404588449,1770316809697,179.84,0.000114,2]
[404588450,1770316809990,179.84,0.000115,2]
[404588451,1770316810261,179.84,0.000115,2]
[404588452,1770316810339,500.0,0.00013273,2]
[404588453,1770316810387,1000.0,0.00013821,2]
[404588454,1770316810530,179.84,0.000116,2]
[404588455,1770316810815,179.84,0.000117,2]
[404588456,1770316811068,179.84,0.000117,2]
[404588457,1770316811341,179.84,0.000118,2]
[404588458,1770316811612,179.84,0.000118,2]
[404588459,1770316811875,179.84,0.000119,2]
[404588460,1770316812344,179.84,0.00012,2]
[404588461,1770316812661,179.84,0.00012,2]
[404588462,1770316813052,179.84,0.000121,2]
[404588463,1770316813316,179.84,0.000122,2]
[404588464,1770316813599,179.84,0.000122,2]
[404588465,1770316813977,179.84,0.000123,2]
[404588466,1770316814293,179.84,0.000123,2]
[404588467,1770316814552,179.84,0.000124,2]
[404588468,1770316814909,179.84,0.000125,2]
[404588469,1770316815347,179.84,0.000125,2]
[404588470,1770316815507,179.84,0.000126,2]
[404588471,1770316815788,179.84,0.000126,2]
[404588472,1770316815865,160.0,1.09e-06,2]
[404588473,1770316816112,179.84,0.000127,2]
[404588474,1770316816445,179.84,0.000128,2]
[404588475,1770316816753,179.84,0.000128,2]
[404588476,1770316816905,160.0,1.09e-06,2]
[404588477,1770316817039,179.84,0.000129,2]
[404588478,1770316817321,179.84,0.000129,2]
[404588479,1770316817939,160.0,1.09e-06,2]
[404588480,1770316818375,179.78,0.0001,2]
[404588481,1770316819053,160.0,1.09e-06,2]
[404588482,1770316820088,160.0,1.09e-06,2]
[404588483,1770316821122,160.0,1.09e-06,2]
[404588484,1770316822161,70.97549956,1.09e-06,2]
[404588485,1770316822195,89.02450044,1.09e-06,2]
[404588486,1770316823238,160.0,1.09e-06,2]
[404588487,1770316824275,160.0,1.09e-06,2]
[404588488,1770316825416,160.0,1.09e-06,2]
[404588490,1770316834921,391.87724,0.00027,120]
[404588491,1770316862777,210.44628504,0.00013273,2]
[404588492,1770316863037,500.0,0.00013699,2]
[404588495,1770316886890,315.97286537,0.00013273,2]
[404588496,1770316887833,500.0,0.00013273,2]
[404588497,1770316912885,422.49518875,0.00039665,30]
[404588507,1770316924191,500.0,0.00013699,2]
[404588513,1770316924474,500.0,0.00013699,2]
[404588514,1770316924510,425.51271515,0.00013699,2]
[404588515,1770316927402,500.0,0.00013273,2]
[404588516,1770316982884,500.0,0.00013699,2]
[404588517,1770316983242,500.0,0.00013699,2]
[404588518,1770316983622,160.9968606,0.00013699,2]
[404588519,1770316983845,500.0,0.00013273,2]
[404588520,1770317006854,253.88171997,0.00013273,2]
[404588524,1770317043394,39299.186244,0.00013744,2]
[404588525,1770317047262,500.0,0.00013273,2]
[404588528,1770317086539,827.404351,0.00013699,2]
[404588610,1770317103484,500.0,0.00013699,2]
[404588611,1770317103548,647.09803383,0.00013699,2]
[404588613,1770317163649,500.0,0.00013699,2]
[404588614,1770317168134,500.0,0.00013273,2]
[404588623,1770317285706,500.0,0.00013273,2]
[404588626,1770317343112,500.0,0.00013699,2]
[404588627,1770317343154,501.08741213,0.00013273,2]
[404588638,1770317406999,500.0,0.00013273,2]
[404588675,1770317431522,-1000.0,0.00013821,2]
[404588676,1770317431532,-397.91517571,0.00013821,2]
[404588677,1770317431580,-219.08482429,0.00013821,2]
[404588678,1770317431590,-150.0,0.00013927,2]
[404588679,1770317431604,-517.4421378,0.00014191,3]
[404588681,1770317431614,-25.55437837,0.00014246,2]
[404588684,1770317431626,-968.91284753,0.00014246,2]
[404588686,1770317431639,-205.5327741,0.00014246,2]
[404588688,1770317431649,-500.0,0.00014247,2]
[404588690,1770317431658,-92.8002964,0.00014247,2]
[404588850,1770317437648,-1018.68561842,0.00014247,2]
[404588852,1770317437658,-498.48854644,0.00014247,2]
[404588854,1770317437668,-171.64953821,0.00014247,2]
[404588856,1770317437679,-844.24720649,0.00014247,2]
[404588858,1770317437689,-189.88697358,0.00014247,2]
[404588860,1770317437699,-503.18327958,0.00014247,2]
[404588862,1770317437709,-1500.0,0.00014368,2]
[404588864,1770317437718,-1500.0,0.00014368,2]
[404588866,1770317437728,-600.0,0.0001482,2]
[404588868,1770317437738,-2000.0,0.00014916,2]
[404588870,1770317437748,-1571.00437905,0.00014916,2]
[404588872,1770317437759,-935.656885,0.00015229,2]
[404588874,1770317437769,-500.0,0.00015341,2]
[404588876,1770317437780,-500.0,0.00015341,2]
[404588878,1770317437791,-365.46431954,0.00015341,2]
[404588880,1770317437800,-500.0,0.00015341,2]
[404588882,1770317437810,-500.0,0.00015341,2]
[404588884,1770317437820,-234.36436334,0.00015341,2]
[404588886,1770317437835,-500.0,0.00015342,2]
[404588888,1770317437844,-500.0,0.00015342,2]
[404588889,1770317437854,-2780.77,0.00015342,2]
[404588891,1770317437863,-10000.0,0.00015342,2]
[404588893,1770317437873,-4866.27333567,0.00015442,2]
[404588899,1770317437980,-1854.65164766,0.00015442,2]
[404588900,1770317437992,-2775.25501667,0.00015442,2]
[404588901,1770317438001,-1032.3589956,0.00015464,2]
[404588902,1770317438010,-246.0,0.0001567,2]
[404588903,1770317438020,-935.656885,0.0001587,2]
[404588904,1770317438029,-177.0,0.00015927,2]
[404588905,1770317438043,-720.0,0.00016302,2]
[404588906,1770317438053,-935.656885,0.00016511,2]
[404588907,1770317438063,-935.656885,0.00017152,2]
[404588908,1770317438076,-935.656885,0.00017794,2]
[404588909,1770317438086,-263.47359443,0.00017927,2]
[404588910,1770317438095,-864.0,0.00017932,2]
[404588911,1770317438105,-935.656885,0.00018435,2]
[404588912,1770317438115,-1000.0,0.00019725,2]
[404588913,1770317438125,-827.404351,0.00020548,2]
[404588914,1770317438135,-1000.0,0.00021697,10]
[404588915,1770317438144,-244.0,0.00021697,10]
[404588916,1770317438155,-1000.0,0.00023867,10]
[404588917,1770317438165,-492.0,0.00023867,10]
[404588918,1770317438175,-500.0,0.00025469,2]
[404588919,1770317438185,-168.0,0.00025552,2]
[404588920,1770317438194,-168.0,0.00025667,2]
[404588921,1770317438204,-1000.0,0.00026254,30]
[404588922,1770317438214,-791.0,0.00026254,30]
[404588923,1770317438224,-168.0,0.00026712,2]
[404588924,1770317438234,-388.46584489,0.00026987,2]
[404588925,1770317438244,-1000.0,0.00028879,30]
[404588926,1770317438254,-1000.0,0.00028879,30]
[404588927,1770317438264,-565.2,0.00030717,2]
[404588928,1770317438274,-1000.0,0.00031767,30]
[404588929,1770317438284,-1000.0,0.00031767,30]
[404588930,1770317438295,-579.0,0.00031767,30]
[404588931,1770317438304,-150.96,0.00032525,32]
[404588932,1770317438314,-297.52041163,0.00032877,7]
[404588933,1770317438327,-500.0,0.00033199,10]
[404588934,1770317438336,-3292.18704641,0.000332,117]
[404588935,1770317438346,-1000.0,0.00034944,30]
[404588936,1770317438356,-251.0,0.00034944,30]
[404588937,1770317438366,-3292.18704639,0.00035585,120]
[404588938,1770317438376,-506.09164999,0.00037209,10]
[404588939,1770317438386,-8630.4919362,0.00037766,2]
[404588940,1770317438396,-741.26793723,0.00038584,2]
[404588941,1770317438405,-250.0,0.00039658,10]
[404588942,1770317438415,-351.546189,0.00039658,10]
[404588943,1770317438424,-306.0506361,0.00039661,7]
[404588944,1770317438434,-2000.0,0.00039661,30]
[404588945,1770317438443,-183.9654156,0.00039665,7]
[404588946,1770317438453,-1158.44991396,0.00040446,120]
[404588947,1770317438463,-500.0,0.00041095,2]
[404588948,1770317438472,-355.33681014,0.00041562,3]
[404588949,1770317438482,-250.0,0.00041572,2]
[404588950,1770317438491,-250.0,0.00041572,2]
[404588951,1770317438500,-250.0,0.00041572,2]
[404588952,1770317438510,-250.0,0.00041572,2]
[404588953,1770317438520,-1000.0,0.00041572,2]
[404588954,1770317438530,-194.72792766,0.00041572,2]
[404588955,1770317438539,-250.0,0.00041572,2]
[404588956,1770317438548,-1000.0,0.00041572,2]
[404588957,1770317438558,-201.93286099,0.00041572,2]
[404588958,1770317438569,-250.0,0.00041572,2]
[404588959,1770317438582,-1000.0,0.00041572,2]
[404588960,1770317438592,-209.40437684,0.00041572,2]
[404588961,1770317438605,-1000.0,0.00041572,2]
[404588962,1770317438615,-250.0,0.00041572,2]
[404588963,1770317438625,-217.15233878,0.00041572,2]
[404588964,1770317438636,-250.0,0.00041572,2]
[404588965,1770317438647,-225.18697532,0.00041572,2]
[404588966,1770317438657,-1000.0,0.00041572,2]
[404588967,1770317438667,-250.0,0.00041572,2]
[404588968,1770317438676,-233.51889341,0.00041572,2]
[404588969,1770317438687,-1000.0,0.00041572,2]
[404588970,1770317438697,-250.0,0.00041572,2]
[404588971,1770317438706,-242.15909246,0.00041572,2]
[404588972,1770317438716,-1000.0,0.00041572,2]
[404588973,1770317438726,-251.11897888,0.00041572,2]
[404588975,1770317438736,-1000.0,0.00041572,2]
[404588977,1770317438746,-260.4103811,0.00041572,2]
[404588979,1770317438756,-1000.0,0.00041572,2]
[404588981,1770317438765,-250.0,0.00041572,2]
[404588982,1770317438775,-2000.0,0.00041572,2]
[404588984,1770317438785,-1000.0,0.00041572,2]
[404588986,1770317438795,-270.0455652,0.00041572,2]
[404588988,1770317438805,-250.0,0.00041572,2]
[404588990,1770317438815,-2000.0,0.00041572,2]
[404588992,1770317438829,-280.03725112,0.00041572,2]
[404588994,1770317438839,-1000.0,0.00041572,2]
[404588996,1770317438849,-250.0,0.00041572,2]
[404588998,1770317438859,-250.0,0.00041572,2]
[404589000,1770317438870,-2000.0,0.00041572,2]
[404589002,1770317438881,-290.39862941,0.00041572,2]
[404589003,1770317438890,-1000.0,0.00041572,2]
[404589005,1770317438900,-250.0,0.00041572,2]
[404589007,1770317438909,-250.0,0.00041572,2]
[404589009,1770317438919,-2000.0,0.00041572,2]
[404589011,1770317438929,-301.1433787,0.00041572,2]
[404589013,1770317438940,-1000.0,0.00041572,2]
[404589015,1770317438950,-250.0,0.00041572,2]
[404589017,1770317438959,-250.0,0.00041572,2]
[404589019,1770317438968,-2000.0,0.00041572,2]
[404589020,1770317438978,-250.0,0.00041572,2]
[404589022,1770317438988,-250.0,0.00041572,2]
[404589024,1770317438998,-2000.0,0.00041572,2]
[404589026,1770317439008,-250.0,0.00041572,2]
[404589028,1770317439018,-2000.0,0.00041572,2]
[404589029,1770317439028,-250.0,0.00041572,2]
[404589031,1770317439039,-250.0,0.00041572,2]
[404589033,1770317439049,-2000.0,0.00041572,2]
[404589034,1770317439060,-250.0,0.00041572,2]
[404589035,1770317439071,-250.0,0.00041572,2]
[404589036,1770317439084,-2000.0,0.00041572,2]
[404589037,1770317439094,-250.0,0.00041572,2]
[404589038,1770317439105,-250.0,0.00041572,2]
[404589039,1770317439115,-2000.0,0.00041572,2]
[404589040,1770317439125,-250.0,0.00041572,2]
[404589041,1770317439135,-2000.0,0.00041572,2]
[404589042,1770317439148,-250.0,0.00041572,2]
[404589043,1770317439159,-2000.0,0.00041572,2]
[404589044,1770317439168,-250.0,0.00041572,2]
[404589045,1770317439178,-2000.0,0.00041572,2]
[404589046,1770317439187,-250.0,0.00041572,2]
[404589048,1770317439197,-2000.0,0.00041572,2]
[404589049,1770317439206,-250.0,0.00041572,2]
[404589050,1770317439215,-2000.0,0.00041572,2]
[404589051,1770317439224,-250.0,0.00041572,2]
[404589052,1770317439234,-250.0,0.00041572,2]
[404589053,1770317439244,-228.0202783,0.00043523,2]
[404589054,1770317439253,-7668.4976683,0.00043523,2]
[404589055,1770317439264,-228.0202783,0.000486,2]
[404589056,1770317439274,-826.0,0.000497,14]
[404589057,1770317439283,-765.2,0.00049836,14]
[404589058,1770317439295,-152.0,0.0005,120]
[404589059,1770317439305,-151.0,0.00050136,30]
[404589060,1770317439314,-623.0,0.00050319,120]
[404589061,1770317439328,-150.0,0.00050319,120]
[404589062,1770317439338,-151.0,0.00050821,32]
[404589064,1770317439348,-856.17,0.00051206,14]
[404589066,1770317439358,-151.0,0.00051506,34]
[404589068,1770317439368,-197.05,0.00051891,14]
[404589070,1770317439378,-257.85,0.00051891,14]
[404589071,1770317439388,-151.0,0.00052191,36]
[404589072,1770317439398,-152.0,0.000522,120]
[404589073,1770317439408,-341.629001,0.00052354,2]
[404589074,1770317439418,-1711.0731128,0.00052486,2]
[404589075,1770317439427,-542.12,0.00052576,14]
[404589076,1770317439437,-542.12,0.00052576,14]
[404589077,1770317439447,-151.0,0.00052876,38]
[404589078,1770317439457,-167.0,0.00053,120]
[404589079,1770317439466,-171.0,0.00053,120]
[404589080,1770317439475,-117615.83,0.00053261,14]
[404589081,1770317439485,-33126.68,0.00053261,14]
[404589082,1770317439494,-150.0,0.00053319,120]
[404589083,1770317439503,-151.0,0.00053561,40]
[404589084,1770317439514,-389.90404,0.000536,120]
[404589086,1770317439523,-228.0202783,0.00053678,2]
[404589088,1770317439532,-171.0,0.00053699,120]
[404589090,1770317439542,-5645.91,0.00053862,10]
[404589092,1770317439552,-4704.92,0.00053862,10]
[404589094,1770317439561,-355.33681014,0.00053862,4]
[404589096,1770317439572,-500.0,0.00053872,120]
[404589098,1770317439586,-500.0,0.00053872,120]
[404589099,1770317439596,-200.39911368,0.00053872,120]
[404589100,1770317439605,-150.0,0.00053872,120]
[404589102,1770317439615,-450.0,0.00053872,120]
[404589103,1770317439628,-150.0,0.00053872,120]
[404589104,1770317439639,-200.0,0.00053872,120]
[404589105,1770317439649,-500.0,0.00053872,120]
[404589106,1770317439660,-500.0,0.00053872,120]
[404589107,1770317439670,-500.0,0.00053872,120]
[404589108,1770317439680,-500.0,0.00053872,120]
[404589109,1770317439691,-450.96149636,0.00053872,120]
[404589110,1770317439701,-500.0,0.00053872,120]
[404589111,1770317439710,-500.0,0.00053872,120]
[404589112,1770317439720,-500.0,0.00053872,120]
[404589113,1770317439729,-300.83364992,0.00053872,120]
[404589114,1770317439739,-500.0,0.00053872,120]
[404589115,1770317439749,-500.0,0.00053872,120]
[404589116,1770317439759,-150.0,0.00053872,120]
[404589117,1770317439769,-500.0,0.00053872,120]
[404589118,1770317439778,-150.0,0.00053872,120]
[404589119,1770317439788,-500.0,0.00053872,120]
[404589120,1770317439797,-150.0,0.00053872,120]
[404589122,1770317439807,-500.0,0.00053872,120]
[404589124,1770317439816,-150.0,0.00053872,120]
[404589126,1770317439829,-500.0,0.00053872,120]
[404589128,1770317439839,-224.55748242,0.00053872,120]
[404589130,1770317439848,-165.03832707,0.00053872,120]
[404589132,1770317439859,-258.36884435,0.00053872,120]
[404589134,1770317439869,-150.66815794,0.00053872,120]
[404589136,1770317439879,-500.0,0.00053872,120]
[404589138,1770317439890,-500.0,0.00053872,120]
[404589140,1770317439899,-500.0,0.00053872,120]
[404589142,1770317439909,-500.0,0.00053872,120]
[404589144,1770317439919,-500.0,0.00053872,120]
[404589146,1770317439928,-500.0,0.00053872,120]
[404589148,1770317439938,-500.0,0.00053872,120]
[404589150,1770317439948,-150.0,0.00053872,120]
[404589151,1770317439958,-294.89561063,0.00053872,120]
[404589153,1770317439968,-500.0,0.00053872,120]
[404589155,1770317439977,-500.0,0.00053872,120]
[404589157,1770317439988,-500.0,0.00053872,120]
[404589159,1770317439998,-500.0,0.00053872,120]
[404589161,1770317440010,-500.0,0.00053872,120]
[404589163,1770317440020,-500.0,0.00053872,120]
[404589165,1770317440030,-500.0,0.00053872,120]
[404589168,1770317440042,-500.0,0.00053872,120]
[404589170,1770317440051,-500.0,0.00053872,120]
[404589172,1770317440062,-500.0,0.00053872,120]
[404589174,1770317440071,-562.17527266,0.00053872,120]
[404589176,1770317440082,-500.0,0.00053872,120]
[404589178,1770317440092,-500.0,0.00053872,120]
[404589180,1770317440102,-500.0,0.00053872,120]
[404589182,1770317440111,-500.0,0.00053872,120]
[404589184,1770317440121,-500.0,0.00053872,120]
[404589186,1770317440131,-500.0,0.00053872,120]
[404589188,1770317440140,-500.0,0.00053872,120]
[404589190,1770317440149,-500.0,0.00053872,120]
[404589192,1770317440158,-243.45183632,0.000539,2]
[404589194,1770317440167,-800.0,0.000539,30]
[404589195,1770317440176,-180810.16,0.00053946,14]
[404589198,1770317440186,-1776.6840507,0.0005399,4]
[404589200,1770317440196,-247606.88890895,0.00054,120]
[404589202,1770317440205,-164.24,0.00054,30]
[404589203,1770317440214,-176.83,0.00054,14]
[404589206,1770317440223,-660.06,0.00054,2]
[404589207,1770317440232,-166.0,0.00054,30]
[404589209,1770317440241,-151.0,0.00054,120]
[404589211,1770317440251,-814.752025,0.00054,120]
[404589214,1770317440260,-151.0,0.00054,120]
[404589216,1770317440270,-151.0,0.00054,120]
[404589217,1770317440279,-814.752025,0.00054,120]
[404589219,1770317440288,-814.752025,0.00054,120]
[404589221,1770317440297,-814.752025,0.00054,120]
[404589223,1770317440306,-240.278344,0.00054,120]
[404589225,1770317440315,-151.0,0.00054,120]
[404589227,1770317440328,-151.0,0.00054,120]
[404589229,1770317440337,-151.0,0.00054,120]
[404589232,1770317440346,-294.814086,0.00054,120]
[404589234,1770317440355,-294.814086,0.00054,120]
[404589236,1770317440365,-294.814086,0.00054,120]
[404589238,1770317440374,-294.814086,0.00054,120]
[404589240,1770317440383,-151.0,0.00054,120]
[404589242,1770317440392,-151.0,0.00054,120]
[404589256,1770317440518,-151.0,0.00054,120]
[404589258,1770317440528,-151.0,0.00054,120]
[404589260,1770317440538,-158.749187,0.00054,120]
[404589262,1770317440547,-164.139323,0.00054,30]
[404589264,1770317440556,-151.0,0.00054,120]
[404589266,1770317440566,-177.76693,0.00054,120]
[404589268,1770317440577,-258.370448,0.00054,120]
[404589270,1770317440587,-429.667211,0.00054,30]
[404589272,1770317440600,-258.370448,0.00054,120]
[404589274,1770317440609,-429.667211,0.00054,30]
[404589276,1770317440621,-151.0,0.00054,120]
[404589278,1770317440632,-258.370448,0.00054,120]
[404589281,1770317440642,-429.667211,0.00054,30]
[404589283,1770317440651,-429.667211,0.00054,30]
[404589285,1770317440661,-258.370448,0.00054,120]
[404589287,1770317440672,-151.0,0.00054,120]
[404589289,1770317440681,-151.0,0.00054,120]
[404589291,1770317440692,-251.464594,0.00054,120]
[404589293,1770317440705,-151.0,0.00054,120]
[404589295,1770317440715,-151.0,0.00054,120]
[404589296,1770317440725,-151.0,0.00054,120]
[404589298,1770317440734,-151.0,0.00054,120]
[404589300,1770317440743,-265.756937,0.00054,120]
[404589302,1770317440752,-265.756937,0.00054,120]
[404589304,1770317440761,-265.756937,0.00054,120]
[404589306,1770317440771,-265.756937,0.00054,120]
[404589308,1770317440780,-151.0,0.00054,120]
[404589310,1770317440789,-151.0,0.00054,120]
[404589312,1770317440799,-275.512915,0.00054,120]
[404589314,1770317440808,-235.574154,0.00054,120]
[404589316,1770317440818,-235.574154,0.00054,120]
[404589318,1770317440830,-235.574154,0.00054,120]
[404589320,1770317440839,-235.574154,0.00054,120]
[404589322,1770317440848,-151.0,0.00054,120]
[404589324,1770317440857,-151.0,0.00054,120]
[404589327,1770317440866,-151.0,0.00054,120]
[404589329,1770317440876,-151.0,0.00054,120]
[404589331,1770317440886,-151.0,0.00054,120]
[404589333,1770317440895,-151.0,0.00054,120]
[404589335,1770317440905,-153.759184,0.00054,120]
[404589337,1770317440915,-151.0,0.00054,120]
[404589339,1770317440924,-151.0,0.00054,120]
[404589341,1770317440934,-151.0,0.00054,120]
[404589343,1770317440943,-151.0,0.00054,120]
[404589345,1770317440953,-156.163678,0.00054,120]
[404589347,1770317440962,-199.884507,0.00054,120]
[404589349,1770317440972,-261.846698,0.00054,120]
[404589351,1770317440982,-366.35431753,0.00054246,2]
[404589353,1770317440991,-151.0,0.00054246,42]
[404589355,1770317441001,-381.7920176,0.00054486,2]
[404589357,1770317441010,-152.0,0.000545,120]
[404589359,1770317441020,-243.4518363,0.0005451,2]
[404589361,1770317441029,-1421.34724056,0.00054779,4]
[404589363,1770317441039,-2842.69448112,0.00054784,4]
[404589365,1770317441048,-124444.49267874,0.00054789,2]
[404589367,1770317441057,-41183.21997611,0.00054789,2]
[404589370,1770317441078,-162.375265,0.00054789,120]
[404589372,1770317441089,-162.375265,0.00054789,120]
[404589374,1770317441100,-162.375265,0.00054789,120]
[404589376,1770317441110,-162.375265,0.00054789,120]
[404589378,1770317441122,-151.0,0.00054789,120]
[404589380,1770317441132,-814.752025,0.00054789,120]
[404589382,1770317441142,-151.0,0.00054789,120]
[404589384,1770317441152,-151.0,0.00054789,120]
[404589386,1770317441162,-814.752025,0.00054789,120]
[404589388,1770317441172,-814.752025,0.00054789,120]
[404589390,1770317441182,-814.752025,0.00054789,120]
[404589392,1770317441192,-151.0,0.00054789,120]
[404589394,1770317441202,-151.0,0.00054789,120]
[404589396,1770317441211,-151.0,0.00054789,120]
[404589398,1770317441221,-294.814086,0.00054789,120]
[404589400,1770317441230,-294.814086,0.00054789,120]
[404589402,1770317441240,-294.814086,0.00054789,120]
[404589404,1770317441250,-151.0,0.00054789,120]
[404589406,1770317441259,-294.814086,0.00054789,120]
[404589408,1770317441269,-151.0,0.00054789,120]
[404589410,1770317441279,-151.0,0.00054789,120]
[404589412,1770317441289,-151.0,0.00054789,120]
[404589414,1770317441299,-1477.851726,0.00054789,120]
[404589416,1770317441308,-365.651233,0.00054789,120]
[404589418,1770317441318,-1477.851726,0.00054789,120]
[404589420,1770317441329,-365.651233,0.00054789,120]
[404589422,1770317441339,-365.651233,0.00054789,120]
[404589424,1770317441348,-1477.851726,0.00054789,120]
[404589426,1770317441358,-365.651233,0.00054789,120]
[404589428,1770317441367,-1477.851726,0.00054789,120]
[404589430,1770317441377,-151.0,0.00054789,15]
[404589433,1770317441387,-151.0,0.00054789,15]
[404589435,1770317441397,-151.0,0.00054789,15]
[404589437,1770317441406,-151.0,0.00054789,15]
[404589439,1770317441416,-376.4018,0.00054789,120]
[404589441,1770317441426,-376.4018,0.00054789,120]
[404589443,1770317441436,-376.4018,0.00054789,120]
[404589445,1770317441446,-376.4018,0.00054789,120]
[404589447,1770317441456,-151.0,0.00054789,120]
[404589449,1770317441465,-151.0,0.00054789,120]
[404589451,1770317441475,-151.0,0.00054789,120]
[404589453,1770317441484,-151.0,0.00054789,120]
[404589455,1770317441494,-151.0,0.00054789,120]
[404589457,1770317441503,-258.370448,0.00054789,120]
[404589459,1770317441513,-429.667211,0.00054789,30]
[404589461,1770317441522,-258.370448,0.00054789,120]
[404589463,1770317441531,-429.667211,0.00054789,30]
[404589465,1770317441541,-258.370448,0.00054789,120]
[404589467,1770317441551,-151.0,0.00054789,120]
[404589469,1770317441560,-429.667211,0.00054789,30]
[404589471,1770317441570,-429.667211,0.00054789,30]
[404589473,1770317441582,-258.370448,0.00054789,120]
[404589475,1770317441591,-151.0,0.00054789,120]
[404589477,1770317441601,-151.0,0.00054789,120]
[404589479,1770317441612,-151.0,0.00054789,120]
[404589482,1770317441625,-151.0,0.00054789,120]
[404589484,1770317441635,-151.0,0.00054789,120]
[404589486,1770317441646,-151.0,0.00054789,120]
[404589488,1770317441656,-265.756937,0.00054789,120]
[404589490,1770317441665,-265.756937,0.00054789,120]
[404589492,1770317441675,-265.756937,0.00054789,120]
[404589494,1770317441686,-265.756937,0.00054789,120]
[404589496,1770317441696,-151.0,0.00054789,120]
[404589498,1770317441705,-235.574154,0.00054789,120]
[404589500,1770317441715,-235.574154,0.00054789,120]
[404589501,1770317441724,-235.574154,0.00054789,120]
[404589504,1770317441739,-235.574154,0.00054789,120]
[404589506,1770317441749,-151.0,0.00054789,120]
[404589508,1770317441759,-200.472448,0.00054789,120]
[404589510,1770317441769,-151.0,0.00054789,120]
[404589512,1770317441779,-281.48193,0.00054789,90]
[404589514,1770317441789,-151.0,0.00054789,120]
[404589516,1770317441799,-223.928741,0.00054789,120]
[404589518,1770317441810,-151.0,0.00054789,120]
[404589520,1770317441820,-160.925947,0.00054789,120]
[404589522,1770317441831,-151.0,0.00054789,120]
[404589524,1770317441842,-160.925947,0.00054789,120]
[404589527,1770317441851,-160.925947,0.00054789,120]
[404589529,1770317441861,-160.925947,0.00054789,120]
[404589531,1770317441871,-151.0,0.00054789,120]
[404589533,1770317441881,-151.0,0.00054789,120]
[404589535,1770317441893,-151.0,0.00054789,120]
[404589537,1770317441903,-151.0,0.00054789,120]
[404589539,1770317441912,-151.0,0.00054789,120]
[404589541,1770317441922,-151.0,0.00054789,120]
[404589543,1770317441931,-221.57676,0.00054789,120]
[404589545,1770317441941,-151.0,0.00054789,120]
[404589547,1770317441951,-151.0,0.00054789,120]
[404589549,1770317441960,-151.0,0.00054789,120]
[404589551,1770317441969,-151.0,0.00054789,120]